[Event "Titled Tuesday Blitz August 15 Late 2023"]
[White "Vasques, Antonio Pedro Freixial"]
[Black "Pinheiro, Iung Alicio de O."]
[WhiteFideId "1908332"]
[BlackFideId "2104350"]
[WhiteElo "2368"]
[BlackElo "2625"]
[Result "1-0"]
[Round "2"]
[TimeControl "180+1"]
[Date "2023.08.15"]
[WhiteClock "0:00:28"]
[BlackClock "0:00:00"]
[Board "91"]

1. e4 {[%clk 0:02:57]}  c5 {[%clk 0:02:57]} 2. Nc3 {[%clk 0:02:55]}  Nc6 {[%clk 0:02:56]} 3. Bb5 {[%clk 0:02:54]}  Nd4 {[%clk 0:02:55]} 4. Nf3 {[%clk 0:02:54]}  e6 {[%clk 0:02:54]} 5. O-O {[%clk 0:02:53]}  a6 {[%clk 0:02:54]} 6. Bd3 {[%clk 0:02:53]}  Nc6 {[%clk 0:02:55]} 7. b3 {[%clk 0:02:47]}  g5 {[%clk 0:02:48]} 8. Bb2 {[%clk 0:02:43]}  Bg7 {[%clk 0:02:48]} 9. a4 {[%clk 0:02:30]}  g4 {[%clk 0:02:45]} 10. Ne1 {[%clk 0:02:30]}  h5 {[%clk 0:02:46]} 11. a5 {[%clk 0:02:29]}  Nxa5 {[%clk 0:02:27]} 12. f4 {[%clk 0:02:27]}  Nc6 {[%clk 0:02:23]} 13. e5 {[%clk 0:02:26]}  d5 {[%clk 0:02:06]} 14. exd6 {[%clk 0:02:24]}  Qxd6 {[%clk 0:02:02]} 15. Ne4 {[%clk 0:02:22]}  Bd4+ {[%clk 0:01:55]} 16. Kh1 {[%clk 0:02:23]}  Qd8 {[%clk 0:01:53]} 17. c3 {[%clk 0:02:16]}  Bg7 {[%clk 0:01:52]} 18. Nxc5 {[%clk 0:02:16]}  b6 {[%clk 0:01:41]} 19. Be4 {[%clk 0:02:12]}  Qc7 {[%clk 0:01:34]} 20. Ncd3 {[%clk 0:02:05]}  Nf6 {[%clk 0:01:33]} 21. Qe2 {[%clk 0:02:02]}  Nxe4 {[%clk 0:01:31]} 22. Qxe4 {[%clk 0:02:02]}  Bb7 {[%clk 0:01:31]} 23. f5 {[%clk 0:01:57]}  Ne7 {[%clk 0:01:23]} 24. Qe2 {[%clk 0:01:44]}  exf5 {[%clk 0:01:01]} 25. Rxf5 {[%clk 0:01:39]}  h4 {[%clk 0:00:59]} 26. Kg1 {[%clk 0:01:17]}  h3 {[%clk 0:00:57]} 27. g3 {[%clk 0:01:15]}  Qc6 {[%clk 0:00:49]} 28. Nf2 {[%clk 0:01:15]}  O-O-O {[%clk 0:00:20]} 29. Rxf7 {[%clk 0:01:12]}  Rhe8 {[%clk 0:00:18]} 30. Qxg4+ {[%clk 0:00:37]}  Kb8 {[%clk 0:00:18]} 31. Qxg7 {[%clk 0:00:37]}  Nf5 {[%clk 0:00:17]} 32. Rxb7+ {[%clk 0:00:38]}  Qxb7 {[%clk 0:00:16]} 33. Qxb7+ {[%clk 0:00:39]}  Kxb7 {[%clk 0:00:17]} 34. Nf3 {[%clk 0:00:38]}  Re2 {[%clk 0:00:16]} 35. Kf1 {[%clk 0:00:36]}  Rdxd2 {[%clk 0:00:14]} 36. Nxd2 {[%clk 0:00:37]}  Rxd2 {[%clk 0:00:14]} 37. Bc1 {[%clk 0:00:36]}  Ne3+ {[%clk 0:00:13]} 38. Ke1 {[%clk 0:00:35]}  Nc2+ {[%clk 0:00:10]} 39. Kxd2 {[%clk 0:00:35]}  Nxa1 {[%clk 0:00:11]} 40. b4 {[%clk 0:00:33]}  a5 {[%clk 0:00:11]} 41. Ne4 {[%clk 0:00:31]}  Kc6 {[%clk 0:00:09]} 42. Kd1 {[%clk 0:00:30]}  Kb5 {[%clk 0:00:08]} 43. g4 {[%clk 0:00:30]}  Nb3 {[%clk 0:00:06]} 44. g5 {[%clk 0:00:30]}  axb4 {[%clk 0:00:07]} 45. g6 {[%clk 0:00:29]}  bxc3 {[%clk 0:00:06]} 46. g7 {[%clk 0:00:28]}  c2+ {[%clk 0:00:04]} 47. Kxc2 {[%clk 0:00:28]}  Nd4+ {[%clk 0:00:04]} 48. Kd3 {[%clk 0:00:28]}  Nf3 {[%clk 0:00:00]} 49. g8=Q {[%clk 0:00:28]} 1-0


[Site "https://www.chess.com"]

[Event "Titled Tuesday Blitz August 15 Late 2023"]
[White "Vlassov, Nikolai"]
[Black "Bogaudinov, Rushan"]
[WhiteFideId "4103360"]
[BlackFideId "4129288"]
[WhiteElo "2600"]
[BlackElo "2354"]
[Result "1-0"]
[Round "2"]
[TimeControl "180+1"]
[Date "2023.08.15"]
[WhiteClock "0:00:05"]
[BlackClock "0:00:06"]
[Board "92"]

1. e4 {[%clk 0:03:00]}  a6 {[%clk 0:02:44]} 2. d4 {[%clk 0:03:00]}  e6 {[%clk 0:02:43]} 3. Bd3 {[%clk 0:02:54]}  d5 {[%clk 0:02:41]} 4. e5 {[%clk 0:02:54]}  c5 {[%clk 0:02:41]} 5. c3 {[%clk 0:02:54]}  Nc6 {[%clk 0:02:41]} 6. Nf3 {[%clk 0:02:53]}  b5 {[%clk 0:02:39]} 7. O-O {[%clk 0:02:53]}  Bb7 {[%clk 0:02:37]} 8. Bg5 {[%clk 0:02:43]}  Qc7 {[%clk 0:02:35]} 9. Nbd2 {[%clk 0:02:43]}  c4 {[%clk 0:02:23]} 10. Bc2 {[%clk 0:02:41]}  b4 {[%clk 0:02:23]} 11. Ba4 {[%clk 0:02:25]}  a5 {[%clk 0:02:08]} 12. Rc1 {[%clk 0:02:25]}  Be7 {[%clk 0:01:58]} 13. b3 {[%clk 0:02:20]}  bxc3 {[%clk 0:01:46]} 14. Rxc3 {[%clk 0:02:19]}  Bb4 {[%clk 0:01:36]} 15. Rc2 {[%clk 0:02:19]}  h6 {[%clk 0:01:24]} 16. Bh4 {[%clk 0:02:17]}  cxb3 {[%clk 0:01:03]} 17. Nxb3 {[%clk 0:02:14]}  Rc8 {[%clk 0:00:59]} 18. Qd3 {[%clk 0:02:04]}  Ne7 {[%clk 0:00:41]} 19. Bxe7 {[%clk 0:01:48]}  Kxe7 {[%clk 0:00:41]} 20. Nc5 {[%clk 0:01:43]}  Qb6 {[%clk 0:00:34]} 21. Rfc1 {[%clk 0:01:26]}  Bxc5 {[%clk 0:00:32]} 22. Rxc5 {[%clk 0:01:23]}  Nb4 {[%clk 0:00:30]} 23. Qb3 {[%clk 0:01:17]}  Rxc5 {[%clk 0:00:27]} 24. Rxc5 {[%clk 0:01:05]}  Rc8 {[%clk 0:00:17]} 25. Rxc8 {[%clk 0:00:51]}  Bxc8 {[%clk 0:00:18]} 26. a3 {[%clk 0:00:51]}  Ba6 {[%clk 0:00:16]} 27. axb4 {[%clk 0:00:50]}  axb4 {[%clk 0:00:17]} 28. h4 {[%clk 0:00:37]}  Bc4 {[%clk 0:00:15]} 29. Qb2 {[%clk 0:00:37]}  g5 {[%clk 0:00:14]} 30. hxg5 {[%clk 0:00:37]}  hxg5 {[%clk 0:00:15]} 31. Nxg5 {[%clk 0:00:32]}  Qa5 {[%clk 0:00:15]} 32. Bc6 {[%clk 0:00:14]}  Qa3 {[%clk 0:00:14]} 33. Qb1 {[%clk 0:00:09]}  b3 {[%clk 0:00:10]} 34. Qh7 {[%clk 0:00:09]}  Qc1+ {[%clk 0:00:09]} 35. Kh2 {[%clk 0:00:08]}  Qxg5 {[%clk 0:00:09]} 36. Qh8 {[%clk 0:00:05]}  b2 {[%clk 0:00:06]} 37. Qe8# {[%clk 0:00:05]} 1-0


[Site "https://www.chess.com"]

[Event "Titled Tuesday Blitz August 15 Late 2023"]
[White "Hajiyev, Kanan"]
[Black "Ivanova, Karina"]
[WhiteFideId "13404148"]
[BlackFideId "24139750"]
[WhiteElo "2554"]
[BlackElo "2309"]
[Result "1-0"]
[Round "2"]
[TimeControl "180+1"]
[Date "2023.08.15"]
[WhiteClock "0:00:46"]
[BlackClock "0:00:04"]
[Board "94"]

1. d4 {[%clk 0:03:00]}  Nf6 {[%clk 0:02:57]} 2. Nf3 {[%clk 0:03:01]}  e6 {[%clk 0:02:56]} 3. c4 {[%clk 0:03:02]}  b6 {[%clk 0:02:55]} 4. a3 {[%clk 0:03:02]}  Bb7 {[%clk 0:02:54]} 5. Nc3 {[%clk 0:03:02]}  d5 {[%clk 0:02:54]} 6. Bg5 {[%clk 0:02:57]}  Be7 {[%clk 0:02:52]} 7. e3 {[%clk 0:02:57]}  O-O {[%clk 0:02:49]} 8. Qc2 {[%clk 0:02:57]}  c5 {[%clk 0:02:47]} 9. dxc5 {[%clk 0:02:56]}  bxc5 {[%clk 0:02:34]} 10. cxd5 {[%clk 0:02:55]}  exd5 {[%clk 0:02:33]} 11. Bd3 {[%clk 0:02:54]}  h6 {[%clk 0:02:31]} 12. Bh4 {[%clk 0:02:54]}  Nc6 {[%clk 0:02:15]} 13. O-O {[%clk 0:02:45]}  d4 {[%clk 0:02:09]} 14. exd4 {[%clk 0:02:43]}  Nxd4 {[%clk 0:02:05]} 15. Nxd4 {[%clk 0:02:43]}  cxd4 {[%clk 0:02:02]} 16. Ne2 {[%clk 0:02:31]}  Rc8 {[%clk 0:01:51]} 17. Qd2 {[%clk 0:02:26]}  Qb6 {[%clk 0:01:08]} 18. Rac1 {[%clk 0:02:19]}  Rfd8 {[%clk 0:01:03]} 19. Rxc8 {[%clk 0:02:16]}  Bxc8 {[%clk 0:01:03]} 20. Re1 {[%clk 0:02:07]}  Ne4 {[%clk 0:00:54]} 21. Bxe4 {[%clk 0:01:57]}  Bxh4 {[%clk 0:00:54]} 22. Bd3 {[%clk 0:01:50]}  Bf6 {[%clk 0:00:52]} 23. Ng3 {[%clk 0:01:48]}  Be6 {[%clk 0:00:47]} 24. Ne4 {[%clk 0:01:47]}  Be5 {[%clk 0:00:43]} 25. Rc1 {[%clk 0:01:32]}  Rc8 {[%clk 0:00:39]} 26. Rxc8+ {[%clk 0:01:31]}  Bxc8 {[%clk 0:00:39]} 27. h3 {[%clk 0:01:16]}  Be6 {[%clk 0:00:37]} 28. Bb1 {[%clk 0:01:15]}  Bd5 {[%clk 0:00:28]} 29. b4 {[%clk 0:01:12]}  Bxe4 {[%clk 0:00:26]} 30. Bxe4 {[%clk 0:01:12]}  Qc7 {[%clk 0:00:21]} 31. Kf1 {[%clk 0:01:00]}  h5 {[%clk 0:00:19]} 32. Bd3 {[%clk 0:00:52]}  g6 {[%clk 0:00:19]} 33. Qc2 {[%clk 0:00:50]}  Qxc2 {[%clk 0:00:18]} 34. Bxc2 {[%clk 0:00:51]}  Kf8 {[%clk 0:00:18]} 35. Ke2 {[%clk 0:00:52]}  Ke7 {[%clk 0:00:18]} 36. Kd3 {[%clk 0:00:52]}  Kd6 {[%clk 0:00:18]} 37. Kc4 {[%clk 0:00:53]}  Bg7 {[%clk 0:00:17]} 38. a4 {[%clk 0:00:53]}  Kc6 {[%clk 0:00:16]} 39. a5 {[%clk 0:00:53]}  Kd6 {[%clk 0:00:16]} 40. Bd3 {[%clk 0:00:48]}  Be5 {[%clk 0:00:15]} 41. Kb5 {[%clk 0:00:48]}  Kc7 {[%clk 0:00:15]} 42. Ka6 {[%clk 0:00:48]}  Kb8 {[%clk 0:00:15]} 43. Kb5 {[%clk 0:00:48]}  Kc7 {[%clk 0:00:15]} 44. Kc5 {[%clk 0:00:48]}  Bd6+ {[%clk 0:00:15]} 45. Kc4 {[%clk 0:00:49]}  Be5 {[%clk 0:00:14]} 46. Kd5 {[%clk 0:00:49]}  Bg7 {[%clk 0:00:14]} 47. b5 {[%clk 0:00:48]}  Bh8 {[%clk 0:00:12]} 48. Bc4 {[%clk 0:00:48]}  Kd7 {[%clk 0:00:11]} 49. Kc5 {[%clk 0:00:48]}  Kc7 {[%clk 0:00:10]} 50. Bxf7 {[%clk 0:00:47]}  d3 {[%clk 0:00:09]} 51. Bxg6 {[%clk 0:00:47]}  d2 {[%clk 0:00:09]} 52. Bxh5 {[%clk 0:00:47]}  Bc3 {[%clk 0:00:08]} 53. b6+ {[%clk 0:00:46]}  axb6+ {[%clk 0:00:08]} 54. axb6+ {[%clk 0:00:47]}  Kb7 {[%clk 0:00:08]} 55. Bf3+ {[%clk 0:00:48]}  Ka6 {[%clk 0:00:08]} 56. b7 {[%clk 0:00:47]}  Ka7 {[%clk 0:00:04]} 57. h4 {[%clk 0:00:46]} 1-0


[Site "https://www.chess.com"]

[Event "Titled Tuesday Blitz August 15 Late 2023"]
[White "Saucey, Michel"]
[Black "Grossboss19"]
[WhiteFideId "601845"]
[WhiteElo "2270"]
[BlackElo "2545"]
[Result "0-1"]
[Round "2"]
[TimeControl "180+1"]
[Date "2023.08.15"]
[WhiteClock "0:00:00"]
[BlackClock "0:00:02"]
[Board "95"]

1. d4 {[%clk 0:03:00]}  f5 {[%clk 0:02:58]} 2. Nf3 {[%clk 0:02:59]}  Nf6 {[%clk 0:02:58]} 3. g3 {[%clk 0:03:00]}  g6 {[%clk 0:02:57]} 4. Bg2 {[%clk 0:03:01]}  Bg7 {[%clk 0:02:58]} 5. O-O {[%clk 0:03:01]}  O-O {[%clk 0:02:58]} 6. c4 {[%clk 0:03:01]}  d6 {[%clk 0:02:58]} 7. Nc3 {[%clk 0:03:01]}  Qe8 {[%clk 0:02:59]} 8. b3 {[%clk 0:02:58]}  c6 {[%clk 0:02:58]} 9. Ba3 {[%clk 0:02:53]}  h6 {[%clk 0:02:54]} 10. Qc2 {[%clk 0:02:49]}  g5 {[%clk 0:02:46]} 11. e4 {[%clk 0:02:48]}  fxe4 {[%clk 0:02:44]} 12. Nxe4 {[%clk 0:02:48]}  Bf5 {[%clk 0:02:43]} 13. Nxf6+ {[%clk 0:02:40]}  Rxf6 {[%clk 0:02:43]} 14. Qd2 {[%clk 0:02:37]}  Qf7 {[%clk 0:02:33]} 15. Qe3 {[%clk 0:02:12]}  Nd7 {[%clk 0:02:31]} 16. Rae1 {[%clk 0:02:08]}  Re8 {[%clk 0:02:28]} 17. Bb2 {[%clk 0:02:00]}  Re6 {[%clk 0:02:23]} 18. Qd2 {[%clk 0:01:51]}  Rxe1 {[%clk 0:02:22]} 19. Nxe1 {[%clk 0:01:48]}  Qg6 {[%clk 0:02:04]} 20. Nf3 {[%clk 0:01:45]}  Be4 {[%clk 0:01:56]} 21. Re1 {[%clk 0:01:38]}  d5 {[%clk 0:01:46]} 22. Ne5 {[%clk 0:01:28]}  Bxe5 {[%clk 0:01:00]} 23. dxe5 {[%clk 0:01:27]}  Bxg2 {[%clk 0:00:57]} 24. Kxg2 {[%clk 0:01:25]}  e6 {[%clk 0:00:56]} 25. cxd5 {[%clk 0:01:11]}  cxd5 {[%clk 0:00:53]} 26. Rc1 {[%clk 0:01:08]}  Nxe5 {[%clk 0:00:48]} 27. Qd4 {[%clk 0:01:05]}  Nf7 {[%clk 0:00:40]} 28. Rc7 {[%clk 0:00:57]}  b5 {[%clk 0:00:32]} 29. Qxa7 {[%clk 0:00:25]}  Qe4+ {[%clk 0:00:23]} 30. f3 {[%clk 0:00:24]}  Qe2+ {[%clk 0:00:22]} 31. Qf2 {[%clk 0:00:24]}  Qxf2+ {[%clk 0:00:22]} 32. Kxf2 {[%clk 0:00:24]}  Ra8 {[%clk 0:00:22]} 33. a3 {[%clk 0:00:20]}  Kf8 {[%clk 0:00:18]} 34. Ke3 {[%clk 0:00:19]}  Ra6 {[%clk 0:00:14]} 35. Kd4 {[%clk 0:00:16]}  Ke8 {[%clk 0:00:11]} 36. Kc5 {[%clk 0:00:15]}  Nd6 {[%clk 0:00:08]} 37. Rc6 {[%clk 0:00:10]}  Rxc6+ {[%clk 0:00:06]} 38. Kxc6 {[%clk 0:00:10]}  Ke7 {[%clk 0:00:05]} 39. Bd4 {[%clk 0:00:07]}  Nf5 {[%clk 0:00:04]} 40. Bc5+ {[%clk 0:00:07]}  Kd8 {[%clk 0:00:04]} 41. Kxb5 {[%clk 0:00:07]}  Kc7 {[%clk 0:00:03]} 42. a4 {[%clk 0:00:07]}  e5 {[%clk 0:00:03]} 43. a5 {[%clk 0:00:07]}  d4 {[%clk 0:00:01]} 44. Kc4 {[%clk 0:00:07]}  Ne3+ {[%clk 0:00:01]} 45. Kd3 {[%clk 0:00:06]}  Nf1 {[%clk 0:00:02]} 46. b4 {[%clk 0:00:03]}  Nxh2 {[%clk 0:00:02]} 47. b5 {[%clk 0:00:04]}  Nxf3 {[%clk 0:00:01]} 48. a6 {[%clk 0:00:00]}  Ne1+ {[%clk 0:00:02]} 0-1


[Site "https://www.chess.com"]

[Event "Titled Tuesday Blitz August 15 Late 2023"]
[White "Drygalov, Sergey"]
[Black "Schut, Han"]
[WhiteFideId "24171743"]
[BlackFideId "1005561"]
[WhiteElo "2956"]
[BlackElo "2244"]
[Result "1-0"]
[Round "2"]
[TimeControl "180+1"]
[Date "2023.08.15"]
[WhiteClock "0:01:08"]
[BlackClock "0:00:06"]
[Board "97"]

1. d4 {[%clk 0:02:57]}  Nf6 {[%clk 0:02:59]} 2. c4 {[%clk 0:02:58]}  g6 {[%clk 0:02:58]} 3. Nc3 {[%clk 0:02:57]}  d5 {[%clk 0:02:58]} 4. cxd5 {[%clk 0:02:57]}  Nxd5 {[%clk 0:02:59]} 5. e4 {[%clk 0:02:58]}  Nxc3 {[%clk 0:02:59]} 6. bxc3 {[%clk 0:02:59]}  Bg7 {[%clk 0:02:59]} 7. Be3 {[%clk 0:03:00]}  c5 {[%clk 0:03:00]} 8. Nf3 {[%clk 0:03:00]}  Qa5 {[%clk 0:03:00]} 9. Qd2 {[%clk 0:03:01]}  Nc6 {[%clk 0:03:00]} 10. Rb1 {[%clk 0:03:01]}  a6 {[%clk 0:03:00]} 11. Rc1 {[%clk 0:03:01]}  cxd4 {[%clk 0:02:59]} 12. cxd4 {[%clk 0:03:02]}  Qxd2+ {[%clk 0:02:59]} 13. Kxd2 {[%clk 0:03:03]}  O-O {[%clk 0:02:58]} 14. h4 {[%clk 0:03:04]}  Rd8 {[%clk 0:02:57]} 15. Rc4 {[%clk 0:02:52]}  Bg4 {[%clk 0:02:51]} 16. d5 {[%clk 0:02:39]}  Bxf3 {[%clk 0:02:49]} 17. gxf3 {[%clk 0:02:39]}  e6 {[%clk 0:02:49]} 18. Bb6 {[%clk 0:02:24]}  Rd7 {[%clk 0:02:40]} 19. Bh3 {[%clk 0:02:22]}  f5 {[%clk 0:02:27]} 20. Ra4 {[%clk 0:02:08]}  exd5 {[%clk 0:02:13]} 21. exf5 {[%clk 0:02:08]}  Ne5 {[%clk 0:01:36]} 22. fxg6 {[%clk 0:01:57]}  Rd6 {[%clk 0:01:36]} 23. gxh7+ {[%clk 0:01:54]}  Kxh7 {[%clk 0:01:33]} 24. Be3 {[%clk 0:01:50]}  Nxf3+ {[%clk 0:01:17]} 25. Ke2 {[%clk 0:01:49]}  Ne5 {[%clk 0:01:01]} 26. Rg1 {[%clk 0:01:46]}  Nc4 {[%clk 0:00:52]} 27. Rb4 {[%clk 0:01:34]}  b5 {[%clk 0:00:51]} 28. Rbb1 {[%clk 0:01:33]}  Re8 {[%clk 0:00:44]} 29. Kd3 {[%clk 0:01:26]}  Ne5+ {[%clk 0:00:31]} 30. Kc2 {[%clk 0:01:23]}  Rc6+ {[%clk 0:00:27]} 31. Kb3 {[%clk 0:01:20]}  a5 {[%clk 0:00:18]} 32. Rbc1 {[%clk 0:01:17]}  a4+ {[%clk 0:00:18]} 33. Ka3 {[%clk 0:01:14]}  Nc4+ {[%clk 0:00:18]} 34. Kb4 {[%clk 0:01:14]}  Bf8+ {[%clk 0:00:15]} 35. Kxb5 {[%clk 0:01:14]}  Rc7 {[%clk 0:00:12]} 36. Bf5+ {[%clk 0:01:09]}  Kh8 {[%clk 0:00:10]} 37. Bd4+ {[%clk 0:01:09]}  Ne5 {[%clk 0:00:06]} 38. Rxc7 {[%clk 0:01:08]} 1-0


[Site "https://www.chess.com"]

[Event "Titled Tuesday Blitz August 15 Late 2023"]
[White "rionelG"]
[Black "Alex_Sahakyan2006"]
[WhiteElo "2377"]
[BlackElo "2695"]
[Result "0-1"]
[Round "2"]
[TimeControl "180+1"]
[Date "2023.08.15"]
[WhiteClock "0:01:16"]
[BlackClock "0:02:08"]
[Board "104"]

1. e4 {[%clk 0:03:00]}  c5 {[%clk 0:02:59]} 2. g3 {[%clk 0:03:00]}  g6 {[%clk 0:02:58]} 3. Bg2 {[%clk 0:02:58]}  Bg7 {[%clk 0:02:58]} 4. Ne2 {[%clk 0:02:59]}  Nc6 {[%clk 0:02:57]} 5. c3 {[%clk 0:02:59]}  e5 {[%clk 0:02:48]} 6. d4 {[%clk 0:02:59]}  cxd4 {[%clk 0:02:48]} 7. cxd4 {[%clk 0:03:00]}  exd4 {[%clk 0:02:49]} 8. O-O {[%clk 0:02:53]}  Nge7 {[%clk 0:02:49]} 9. Nd2 {[%clk 0:02:39]}  O-O {[%clk 0:02:34]} 10. Nb3 {[%clk 0:02:38]}  d5 {[%clk 0:02:28]} 11. Nexd4 {[%clk 0:02:31]}  Nxd4 {[%clk 0:02:24]} 12. Nxd4 {[%clk 0:02:29]}  dxe4 {[%clk 0:02:24]} 13. Be3 {[%clk 0:02:26]}  Nd5 {[%clk 0:02:23]} 14. Bxe4 {[%clk 0:02:16]}  Nxe3 {[%clk 0:02:22]} 15. fxe3 {[%clk 0:02:17]}  Qe7 {[%clk 0:02:16]} 16. Qf3 {[%clk 0:02:14]}  Bh3 {[%clk 0:02:10]} 17. Rf2 {[%clk 0:02:13]}  Rae8 {[%clk 0:02:10]} 18. Bxb7 {[%clk 0:02:08]}  Qxe3 {[%clk 0:02:09]} 19. Qxe3 {[%clk 0:01:39]}  Rxe3 {[%clk 0:02:10]} 20. Rd1 {[%clk 0:01:16]}  Bxd4 {[%clk 0:02:08]} 0-1


[Site "https://www.chess.com"]

[Event "Titled Tuesday Blitz August 15 Late 2023"]
[White "Kekic, Armin"]
[Black "Valenzuela Gomez, Fernando"]
[WhiteFideId "14401274"]
[BlackFideId "3409392"]
[WhiteElo "2353"]
[BlackElo "2635"]
[Result "0-1"]
[Round "2"]
[TimeControl "180+1"]
[Date "2023.08.15"]
[WhiteClock "0:00:00"]
[BlackClock "0:02:04"]
[Board "109"]

1. e4 {[%clk 0:03:00]}  d6 {[%clk 0:03:00]} 2. d4 {[%clk 0:02:59]}  Nf6 {[%clk 0:03:00]} 3. Nc3 {[%clk 0:02:59]}  e5 {[%clk 0:03:01]} 4. dxe5 {[%clk 0:02:59]}  dxe5 {[%clk 0:03:02]} 5. Qxd8+ {[%clk 0:02:59]}  Kxd8 {[%clk 0:03:03]} 6. Bc4 {[%clk 0:02:57]}  Bb4 {[%clk 0:03:03]} 7. Bg5 {[%clk 0:02:50]}  Ke7 {[%clk 0:03:00]} 8. Nf3 {[%clk 0:02:30]}  Bxc3+ {[%clk 0:02:57]} 9. bxc3 {[%clk 0:02:30]}  Nc6 {[%clk 0:02:58]} 10. O-O-O {[%clk 0:02:23]}  Be6 {[%clk 0:02:57]} 11. Bxe6 {[%clk 0:02:14]}  Kxe6 {[%clk 0:02:45]} 12. Rhe1 {[%clk 0:02:13]}  Nd7 {[%clk 0:02:40]} 13. Be3 {[%clk 0:02:10]}  f6 {[%clk 0:02:40]} 14. Rd2 {[%clk 0:02:05]}  Nb6 {[%clk 0:02:40]} 15. Bxb6 {[%clk 0:01:50]}  axb6 {[%clk 0:02:40]} 16. Kb2 {[%clk 0:01:44]}  Ra4 {[%clk 0:02:40]} 17. Rd3 {[%clk 0:01:36]}  Rha8 {[%clk 0:02:40]} 18. Ra1 {[%clk 0:01:36]}  Rxe4 {[%clk 0:02:40]} 19. Rad1 {[%clk 0:01:18]}  Rea4 {[%clk 0:02:26]} 20. Ra1 {[%clk 0:01:13]}  R8a5 {[%clk 0:02:21]} 21. Nd2 {[%clk 0:01:09]}  Rb5+ {[%clk 0:02:19]} 22. Nb3 {[%clk 0:01:04]}  Rba5 {[%clk 0:02:20]} 23. f3 {[%clk 0:00:56]}  Rd5 {[%clk 0:02:17]} 24. Rxd5 {[%clk 0:00:54]}  Kxd5 {[%clk 0:02:18]} 25. Rd1+ {[%clk 0:00:54]}  Ke6 {[%clk 0:02:18]} 26. Nd2 {[%clk 0:00:49]}  Ra8 {[%clk 0:02:18]} 27. g3 {[%clk 0:00:40]}  Rd8 {[%clk 0:02:16]} 28. Kc1 {[%clk 0:00:38]}  b5 {[%clk 0:02:16]} 29. Re1 {[%clk 0:00:36]}  b4 {[%clk 0:02:11]} 30. Ne4 {[%clk 0:00:19]}  b6 {[%clk 0:02:08]} 31. cxb4 {[%clk 0:00:18]}  Nxb4 {[%clk 0:02:09]} 32. Kb2 {[%clk 0:00:14]}  h6 {[%clk 0:02:07]} 33. f4 {[%clk 0:00:14]}  f5 {[%clk 0:02:06]} 34. Nc3 {[%clk 0:00:11]}  e4 {[%clk 0:02:06]} 35. Re2 {[%clk 0:00:11]}  Nd5 {[%clk 0:02:05]} 36. Nxd5 {[%clk 0:00:10]}  Rxd5 {[%clk 0:02:06]} 37. c4 {[%clk 0:00:09]}  Rd3 {[%clk 0:02:06]} 38. a3 {[%clk 0:00:08]}  Kd6 {[%clk 0:02:06]} 39. Rc2 {[%clk 0:00:06]}  Kc5 {[%clk 0:02:06]} 40. Ka2 {[%clk 0:00:05]}  e3 {[%clk 0:02:06]} 41. Kb1 {[%clk 0:00:03]}  Kd4 {[%clk 0:02:04]} 42. Kc1 {[%clk 0:00:03]}  Rc3 {[%clk 0:02:04]} 43. Rxc3 {[%clk 0:00:02]}  Kxc3 {[%clk 0:02:05]} 44. c5 {[%clk 0:00:02]}  bxc5 {[%clk 0:02:04]} 45. Kd1 {[%clk 0:00:02]}  Kb3 {[%clk 0:02:03]} 46. Ke2 {[%clk 0:00:02]}  Kxa3 {[%clk 0:02:03]} 47. Kxe3 {[%clk 0:00:02]}  c4 {[%clk 0:02:03]} 48. Kd2 {[%clk 0:00:00]}  Kb2 {[%clk 0:02:04]} 0-1


[Site "https://www.chess.com"]

[Event "Titled Tuesday Blitz August 15 Late 2023"]
[White "Nasir, Zehn"]
[Black "Silvestre, Christian"]
[WhiteFideId "2613239"]
[BlackFideId "30956269"]
[WhiteElo "2618"]
[BlackElo "2351"]
[Result "1-0"]
[Round "2"]
[TimeControl "180+1"]
[Date "2023.08.15"]
[WhiteClock "0:01:29"]
[BlackClock "0:01:31"]
[Board "110"]

1. d4 {[%clk 0:03:00]}  Nf6 {[%clk 0:02:50]} 2. Bf4 {[%clk 0:03:01]}  c5 {[%clk 0:02:48]} 3. e3 {[%clk 0:03:01]}  cxd4 {[%clk 0:02:48]} 4. exd4 {[%clk 0:03:02]}  d6 {[%clk 0:02:48]} 5. c3 {[%clk 0:03:00]}  g6 {[%clk 0:02:48]} 6. Nd2 {[%clk 0:03:00]}  Bg7 {[%clk 0:02:48]} 7. Bd3 {[%clk 0:03:00]}  O-O {[%clk 0:02:49]} 8. Ngf3 {[%clk 0:03:01]}  Nc6 {[%clk 0:02:47]} 9. O-O {[%clk 0:03:01]}  e5 {[%clk 0:02:47]} 10. Bg3 {[%clk 0:02:52]}  Nh5 {[%clk 0:02:42]} 11. Bh4 {[%clk 0:02:32]}  Qb6 {[%clk 0:02:28]} 12. d5 {[%clk 0:02:23]}  Nb8 {[%clk 0:02:14]} 13. Be7 {[%clk 0:02:09]}  Qc7 {[%clk 0:02:04]} 14. Bxf8 {[%clk 0:02:09]}  Bxf8 {[%clk 0:02:05]} 15. Re1 {[%clk 0:02:06]}  Nd7 {[%clk 0:02:02]} 16. Bf1 {[%clk 0:02:05]}  Ndf6 {[%clk 0:02:00]} 17. Ne4 {[%clk 0:02:01]}  Nxe4 {[%clk 0:02:00]} 18. Rxe4 {[%clk 0:02:02]}  f5 {[%clk 0:02:00]} 19. Re1 {[%clk 0:01:54]}  Bh6 {[%clk 0:01:56]} 20. Qb3 {[%clk 0:01:44]}  g5 {[%clk 0:01:49]} 21. Nxe5 {[%clk 0:01:38]}  Nf4 {[%clk 0:01:35]} 22. Nd3 {[%clk 0:01:34]}  g4 {[%clk 0:01:35]} 23. Nxf4 {[%clk 0:01:33]}  Bxf4 {[%clk 0:01:31]} 24. Re8+ {[%clk 0:01:29]} 1-0


[Site "https://www.chess.com"]

[Event "Titled Tuesday Blitz August 15 Late 2023"]
[White "Francisco Guecamburu, Candela Be"]
[Black "Harish, Neeraj"]
[WhiteFideId "160911"]
[BlackFideId "30958130"]
[WhiteElo "2563"]
[BlackElo "2333"]
[Result "1-0"]
[Round "2"]
[TimeControl "180+1"]
[Date "2023.08.15"]
[WhiteClock "0:00:31"]
[BlackClock "0:00:07"]
[Board "115"]

1. e4 {[%clk 0:02:57]}  c5 {[%clk 0:02:58]} 2. Nf3 {[%clk 0:02:57]}  Nc6 {[%clk 0:02:58]} 3. Bb5 {[%clk 0:02:57]}  g6 {[%clk 0:02:58]} 4. Bxc6 {[%clk 0:02:57]}  dxc6 {[%clk 0:02:59]} 5. d3 {[%clk 0:02:54]}  Bg7 {[%clk 0:02:58]} 6. h3 {[%clk 0:02:54]}  Nf6 {[%clk 0:02:58]} 7. Nc3 {[%clk 0:02:54]}  Nd7 {[%clk 0:02:56]} 8. Bg5 {[%clk 0:02:49]}  h6 {[%clk 0:02:52]} 9. Be3 {[%clk 0:02:49]}  e5 {[%clk 0:02:50]} 10. Qd2 {[%clk 0:02:49]}  b6 {[%clk 0:02:40]} 11. O-O-O {[%clk 0:02:43]}  a5 {[%clk 0:02:32]} 12. Kb1 {[%clk 0:02:40]}  a4 {[%clk 0:02:31]} 13. Nh2 {[%clk 0:02:35]}  b5 {[%clk 0:02:21]} 14. Rhf1 {[%clk 0:02:26]}  b4 {[%clk 0:02:20]} 15. Ne2 {[%clk 0:02:26]}  b3 {[%clk 0:02:19]} 16. cxb3 {[%clk 0:02:23]}  axb3 {[%clk 0:02:19]} 17. a3 {[%clk 0:02:23]}  Qe7 {[%clk 0:01:57]} 18. Nc1 {[%clk 0:02:11]}  Ba6 {[%clk 0:01:43]} 19. Qc3 {[%clk 0:02:05]}  O-O {[%clk 0:01:26]} 20. Nxb3 {[%clk 0:02:02]}  c4 {[%clk 0:01:19]} 21. dxc4 {[%clk 0:01:59]}  Rfb8 {[%clk 0:01:10]} 22. Na5 {[%clk 0:01:36]}  Qe6 {[%clk 0:00:58]} 23. Rd2 {[%clk 0:01:30]}  Bf8 {[%clk 0:00:44]} 24. Rfd1 {[%clk 0:01:23]}  Bc8 {[%clk 0:00:39]} 25. Ng4 {[%clk 0:01:08]}  h5 {[%clk 0:00:34]} 26. Nh2 {[%clk 0:01:03]}  Nc5 {[%clk 0:00:23]} 27. Bxc5 {[%clk 0:00:53]}  Bxc5 {[%clk 0:00:22]} 28. Rd8+ {[%clk 0:00:53]}  Kg7 {[%clk 0:00:21]} 29. Nf3 {[%clk 0:00:54]}  f6 {[%clk 0:00:16]} 30. Nb3 {[%clk 0:00:48]}  Bxa3 {[%clk 0:00:14]} 31. bxa3 {[%clk 0:00:45]}  Rxa3 {[%clk 0:00:14]} 32. Nd2 {[%clk 0:00:42]}  Qe7 {[%clk 0:00:10]} 33. Kb2 {[%clk 0:00:32]}  Raxb3+ {[%clk 0:00:08]} 34. Nxb3 {[%clk 0:00:32]}  Be6 {[%clk 0:00:07]} 35. Rxb8 {[%clk 0:00:31]} 1-0


[Site "https://www.chess.com"]